[Event "22nd ETCC Women 2019"]
[Site "Batumi"]
[Date "2019.10.30"]
[Round "6.12"]
[White "Bhatia, Kanwal K"]
[Black "Bengtsson, Siv"]
[Result "1-0"]
[ECO "C07"]
[WhiteElo "2038"]
[BlackElo "2086"]
[Annotator "NA"]
[PlyCount "89"]
[EventDate "2019.10.24"]
[EventType "team-tourn"]
[EventCountry "GEO"]
[SourceTitle "playchess.com"]
[Source "ChessBase"]
[SourceQuality "1"]
[WhiteTeam "England"]
[BlackTeam "Sweden"]
[WhiteTeamCountry "ENG"]
[BlackTeamCountry "SWE"]
[TimeControl "40/5400+30:1800+30"]

1. e4 {[%emt 0:00:00]} e6 {[%emt 0:00:00]} 2. d4 {[%emt 0:00:00]} d5 {[%emt 0:00:00]} 3. Nd2 {[%emt 0:00:00]} c5 {[%emt 0:00:03]} 4. exd5 {[%emt 0:05:49]} Qxd5 {[%emt 0:02:18]} 5. Ngf3 {[%emt 0:00:13]} cxd4 {[%emt 0:01:29]} 6. Bc4 {[%emt 0:00:32]} Qd6 {[%emt 0:01:40]} 7. O-O {[%emt 0:00:29]} Nf6 {[%emt 0:03:03]} 8. Qe2 {[%emt 0:02:58]} Be7 {[%emt 0:09:04]} 9. Nb3 {[%emt 0:01:18]} Nc6 {[%emt 0:00:31]} 10. Rd1 {[%emt 0:00:26]} Qc7 {[%emt 0:05:54]} 11. Nbxd4 {[%emt 0:03:23]} Nxd4 {[%emt 0:00:54]} 12. Nxd4 {[%emt 0:02:41]} a6 {[%emt 0:03:56]} 13. a4 {[%emt 0:02:19]} O-O {[%emt 0:05:27]} 14. h3 {[%emt 0:04:44]} e5 {[%emt 0:15:16]} 15. Nf3 {[%emt 0:02:04]} e4 {[%emt 0:04:34]} 16. Nd4 {[%emt 0:00:50]} Bd7 {[%emt 0:01:58]} 17. Bg5 {[%emt 0:28:05]} Rfe8 {[%emt 0:12:49]} 18. Bh4 {[%emt 0:05:17]} Qe5 {[%emt 0:10:30]} 19. Bg3 {[%emt 0:08:59]} Qg5 {[%emt 0:00:23]} 20. Qd2 {[%emt 0:04:42]} Qg6 {[%emt 0:04:43]} 21. Ne2 {[%emt 0:07:18]} Bc6 {[%emt 0:02:18]} 22. Nf4 {[%emt 0:01:22]} Qf5 {[%emt 0:00:23]} 23. b4 {[%emt 0:08:40]} Rad8 {[%emt 0:02:50]} 24. Qc3 {[%emt 0:00:30]} Rxd1+ {[%emt 0:04:00]} 25. Rxd1 {[%emt 0:00:06]} Nd7 {[%emt 0:02:08]} 26. b5 {[%emt 0:03:57]} axb5 {[%emt 0:00:11]} 27. axb5 {[%emt 0:00:03]} Bf6 {[%emt 0:03:07]} 28. Qb3 {[%emt 0:01:42]} Be5 {[%emt 0:00:23]} 29. bxc6 {[%emt 0:00:51]} Nc5 {[%emt 0:00:12]} 30. Qe3 {[%emt 0:00:29]} b6 {[%emt 0:01:44]} 31. Ne2 {[%emt 0:01:34]} Bf6 {[%emt 0:00:27]} 32. Rd5 {[%emt 0:01:23]} Qc8 {[%emt 0:00:18]} 33. c7 {[%emt 0:00:00]} h6 {[%emt 0:00:13]} 34. Nd4 {[%emt 0:01:37]} Qa8 {[%emt 0:01:38]} 35. Nb3 {[%emt 0:01:16]} Bg5 {[%emt 0:01:15]} 36. Bf4 {[%emt 0:01:04]} Bxf4 {[%emt 0:00:21]} 37. Qxf4 {[%emt 0:00:05]} Ne6 {[%emt 0:00:03]} 38. Qd6 {[%emt 0:00:23]} Qb7 {[%emt 0:01:00]} 39. Qd7 {[%emt 0:00:37]} Rc8 {[%emt 0:00:55]} 40. Nd4 {[%emt 0:00:00]} Rxc7 {[%emt 0:00:00]} 41. Qe8+ {[%emt 0:02:04]} Kh7 {[%emt 0:11:42]} 42. Nxe6 {[%emt 0:04:39]} fxe6 {[%emt 0:06:46]} 43. Rd8 {[%emt 0:00:50]} Re7 {[%emt 0:02:27]} 44. Qg8+ {[%emt 0:02:59]} Kg6 {[%emt 0:00:07]} 45. Rd6 {[%emt 0:00:57]} 1-0

[Event "22nd ETCC Women 2019"]
[Site "Batumi"]
[Date "2019.10.30"]
[Round "6.13"]
[White "Ushenina, Anna"]
[Black "Hoang, Thanh Trang"]
[Result "1/2-1/2"]
[ECO "A04"]
[WhiteElo "2431"]
[BlackElo "2414"]
[Annotator "NA"]
[PlyCount "61"]
[EventDate "2019.10.24"]
[EventType "team-tourn"]
[EventCountry "GEO"]
[SourceTitle "playchess.com"]
[Source "ChessBase"]
[SourceQuality "1"]
[WhiteTeam "Ukraine"]
[BlackTeam "Hungary"]
[WhiteTeamCountry "UKR"]
[BlackTeamCountry "HUN"]
[TimeControl "40/5400+30:1800+30"]

1. Nf3 {[%emt 0:00:00]} f5 {[%emt 0:00:19]} 2. c4 {[%emt 0:01:03]} Nf6 {[%emt 0:00:22]} 3. g3 {[%emt 0:00:17]} e6 {[%emt 0:02:08]} 4. Bg2 {[%emt 0:00:35]} d5 {[%emt 0:01:20]} 5. O-O {[%emt 0:01:51]} c6 {[%emt 0:00:59]} 6. d3 {[%emt 0:00:32]} Be7 {[%emt 0:02:24]} 7. Nc3 {[%emt 0:00:35]} O-O {[%emt 0:02:48]} 8. Qc2 {[%emt 0:00:37]} a5 {[%emt 0:05:34]} 9. e4 {[%emt 0:11:35]} d4 {[%emt 0:08:21]} 10. e5 {[%emt 0:00:47]} dxc3 {[%emt 0:02:00]} 11. exf6 {[%emt 0:00:17]} Bxf6 {[%emt 0:00:46]} 12. bxc3 {[%emt 0:00:04]} e5 {[%emt 0:00:39]} 13. Re1 {[%emt 0:00:41]} Nd7 {[%emt 0:05:33]} 14. Rb1 {[%emt 0:09:52]} Re8 15. Be3 {[%emt 0:01:38]} h6 {[%emt 0:09:52]} 16. d4 {[%emt 0:06:01]} e4 {[%emt 0:02:42]} 17. Nd2 {[%emt 0:00:06]} Bg5 {[%emt 0:05:21]} 18. f3 {[%emt 0:13:44]} Bxe3+ {[%emt 0:03:23]} 19. Rxe3 {[%emt 0:00:04]} exf3 {[%emt 0:00:32]} 20. Rxe8+ {[%emt 0:02:38]} Qxe8 {[%emt 0:00:09]} 21. Nxf3 {[%emt 0:00:02]} f4 {[%emt 0:08:54]} 22. Re1 {[%emt 0:03:23]} Qf7 {[%emt 0:01:44]} 23. d5 {[%emt 0:09:07]} fxg3 {[%emt 0:03:45]} 24. hxg3 {[%emt 0:00:28]} Nf6 {[%emt 0:04:31]} 25. Ne5 {[%emt 0:03:13]} Qc7 {[%emt 0:03:50]} 26. Qg6 {[%emt 0:23:56]} cxd5 {[%emt 0:03:13]} 27. cxd5 {[%emt 0:03:57]} Qxc3 {[%emt 0:02:19]} 28. Qf7+ {[%emt 0:01:00]} Kh7 {[%emt 0:00:20]} 29. Qg6+ {[%emt 0:01:37]} Kg8 {[%emt 0:00:12]} 30. Qf7+ {[%emt 0:02:51]} Kh7 {[%emt 0:00:11]} 31. Qg6+ {[%emt 0:00:44]} 1/2-1/2

[Event "22nd ETCC Women 2019"]
[Site "Batumi"]
[Date "2019.10.30"]
[Round "6.13"]
[White "Exler, Veronika"]
[Black "Franciskovic, Borka"]
[Result "1/2-1/2"]
[ECO "B18"]
[WhiteElo "2222"]
[BlackElo "2262"]
[Annotator "NA"]
[PlyCount "56"]
[EventDate "2019.10.24"]
[EventType "team-tourn"]
[EventCountry "GEO"]
[SourceTitle "playchess.com"]
[Source "ChessBase"]
[SourceQuality "1"]
[WhiteTeam "Austria"]
[BlackTeam "Croatia"]
[WhiteTeamCountry "AUT"]
[BlackTeamCountry "CRO"]
[TimeControl "40/5400+30:1800+30"]

1. e4 {[%emt 0:00:00]} c6 {[%emt 0:00:00]} 2. d4 {[%emt 0:00:00]} d5 {[%emt 0:00:00]} 3. Nc3 {[%emt 0:00:00]} dxe4 {[%emt 0:00:00]} 4. Nxe4 {[%emt 0:00:00]} Bf5 {[%emt 0:00:00]} 5. Ng3 {[%emt 0:00:00]} Bg6 {[%emt 0:00:00]} 6. Nh3 {[%emt 0:00:00]} Nf6 {[%emt 0:02:58]} 7. Nf4 {[%emt 0:00:01]} e5 {[%emt 0:01:52]} 8. dxe5 {[%emt 0:00:08]} Qa5+ {[%emt 0:00:30]} 9. c3 {[%emt 0:00:27]} Qxe5+ {[%emt 0:00:50]} 10. Qe2 {[%emt 0:00:06]} Nbd7 {[%emt 0:08:22]} 11. Nxg6 {[%emt 0:00:14]} hxg6 {[%emt 0:01:13]} 12. Bf4 {[%emt 0:01:31]} Qxe2+ {[%emt 0:04:56]} 13. Bxe2 {[%emt 0:00:06]} Nd5 {[%emt 0:08:21]} 14. Bd2 {[%emt 0:01:04]} f5 {[%emt 0:05:49]} 15. O-O-O {[%emt 0:41:59]} Bc5 {[%emt 0:15:09]} 16. c4 {[%emt 0:00:38]} N5f6 {[%emt 0:02:59]} 17. f3 {[%emt 0:01:05]} O-O-O {[%emt 0:05:24]} 18. Bf4 {[%emt 0:06:43]} Rde8 {[%emt 0:07:33]} 19. Bd3 {[%emt 0:00:09]} Ne5 {[%emt 0:04:06]} 20. b3 {[%emt 0:05:58]} Nxd3+ {[%emt 0:02:29]} 21. Rxd3 {[%emt 0:00:07]} Re6 {[%emt 0:00:36]} 22. Rhd1 {[%emt 0:01:47]} Rhe8 {[%emt 0:01:32]} 23. Bg5 {[%emt 0:12:25]} a5 {[%emt 0:10:07]} 24. Bd2 {[%emt 0:01:43]} b6 {[%emt 0:01:27]} 25. Bg5 {[%emt 0:03:58]} Nh7 {[%emt 0:04:24]} 26. Bd2 {[%emt 0:00:31]} Nf6 {[%emt 0:00:19]} 27. Bg5 {[%emt 0:00:10]} Nh7 {[%emt 0:00:21]} 28. Bd2 {[%emt 0:00:05]} Nf6 {[%emt 0:02:01]} 1/2-1/2

[Event "22nd ETCC Women 2019"]
[Site "Batumi"]
[Date "2019.10.30"]
[Round "6.14"]
[White "Gara, Anita"]
[Black "Buksa, Nataliya"]
[Result "1/2-1/2"]
[ECO "B31"]
[WhiteElo "2366"]
[BlackElo "2410"]
[Annotator "NA"]
[PlyCount "115"]
[EventDate "2019.10.24"]
[EventType "team-tourn"]
[EventCountry "GEO"]
[SourceTitle "playchess.com"]
[Source "ChessBase"]
[SourceQuality "1"]
[WhiteTeam "Hungary"]
[BlackTeam "Ukraine"]
[WhiteTeamCountry "HUN"]
[BlackTeamCountry "UKR"]
[TimeControl "40/5400+30:1800+30"]

1. e4 {[%emt 0:00:00]} c5 {[%emt 0:00:00]} 2. Nf3 {[%emt 0:00:00]} Nc6 {[%emt 0:00:00]} 3. Bb5 {[%emt 0:00:12]} g6 {[%emt 0:00:00]} 4. Bxc6 {[%emt 0:00:39]} dxc6 {[%emt 0:00:25]} 5. d3 {[%emt 0:00:18]} Bg7 {[%emt 0:00:05]} 6. h3 {[%emt 0:00:14]} Nf6 {[%emt 0:00:43]} 7. Nc3 {[%emt 0:03:12]} Nd7 {[%emt 0:02:08]} 8. Be3 {[%emt 0:01:50]} b6 {[%emt 0:04:29]} 9. Qd2 {[%emt 0:02:04]} e5 {[%emt 0:00:05]} 10. Bh6 {[%emt 0:05:12]} Bf6 {[%emt 0:00:56]} 11. a4 {[%emt 0:06:52]} a5 {[%emt 0:03:34]} 12. b3 {[%emt 0:06:23]} Nf8 {[%emt 0:01:31]} 13. Bg5 {[%emt 0:11:56]} Ne6 {[%emt 0:05:38]} 14. Bxf6 {[%emt 0:00:23]} Qxf6 {[%emt 0:00:04]} 15. Ne2 {[%emt 0:00:30]} Qg7 {[%emt 0:11:19]} 16. Qc3 {[%emt 0:08:43]} f6 {[%emt 0:00:05]} 17. Nd2 {[%emt 0:07:12]} Qc7 {[%emt 0:09:39]} 18. O-O {[%emt 0:02:16]} g5 {[%emt 0:08:56]} 19. Nc4 {[%emt 0:02:38]} Nd4 {[%emt 0:07:01]} 20. Rae1 {[%emt 0:03:47]} Be6 {[%emt 0:03:23]} 21. Qd2 {[%emt 0:14:06]} Rb8 {[%emt 0:07:41]} 22. Rb1 {[%emt 0:00:32]} h5 {[%emt 0:01:58]} 23. c3 {[%emt 0:05:26]} Nxe2+ {[%emt 0:07:28]} 24. Qxe2 {[%emt 0:00:02]} Kf7 {[%emt 0:00:06]} 25. b4 {[%emt 0:04:07]} Kg6 {[%emt 0:02:34]} 26. bxa5 {[%emt 0:01:18]} bxa5 {[%emt 0:01:17]} 27. Qe3 {[%emt 0:04:30]} Bxc4 {[%emt 0:01:52]} 28. dxc4 {[%emt 0:00:03]} Qe7 {[%emt 0:00:03]} 29. Rfd1 {[%emt 0:01:42]} Rhd8 {[%emt 0:01:32]} 30. Kh2 {[%emt 0:02:24]} h4 {[%emt 0:10:24]} 31. Qf3 {[%emt 0:01:00]} Rxb1 {[%emt 0:02:01]} 32. Qf5+ {[%emt 0:02:00]} Kg7 {[%emt 0:00:03]} 33. Rxb1 {[%emt 0:00:03]} Qc7 {[%emt 0:00:19]} 34. Qe6 {[%emt 0:00:59]} Rd6 {[%emt 0:01:18]} 35. Qe8 {[%emt 0:01:19]} Rd8 {[%emt 0:01:03]} 36. Qe6 {[%emt 0:00:12]} Rd6 {[%emt 0:01:18]} 37. Qf5 {[%emt 0:00:01]} Rd3 {[%emt 0:00:56]} 38. Rb2 {[%emt 0:00:58]} Rd8 {[%emt 0:02:09]} 39. Qg4 {[%emt 0:01:56]} Rd6 {[%emt 0:00:54]} 40. Rb3 {[%emt 0:00:00]} Rd2 {[%emt 0:00:00]} 41. Qf5 {[%emt 0:07:16]} Rd6 {[%emt 0:03:06]} 42. Rb2 {[%emt 0:03:00]} Rd3 {[%emt 0:04:04]} 43. Qg4 {[%emt 0:01:40]} Kg6 {[%emt 0:00:56]} 44. Rb1 {[%emt 0:01:11]} Kg7 {[%emt 0:01:26]} 45. Qe6 {[%emt 0:05:23]} Rd8 {[%emt 0:00:13]} 46. Rb2 {[%emt 0:03:37]} Kg6 {[%emt 0:00:05]} 47. Qf5+ {[%emt 0:00:35]} Kg7 {[%emt 0:00:03]} 48. g3 {[%emt 0:00:10]} Qd7 {[%emt 0:11:35]} 49. gxh4 {[%emt 0:02:38]} Qxf5 {[%emt 0:00:05]} 50. exf5 {[%emt 0:00:04]} gxh4 {[%emt 0:00:02]} 51. Rb7+ {[%emt 0:02:00]} Kh6 {[%emt 0:02:30]} 52. Ra7 {[%emt 0:00:01]} Kg5 {[%emt 0:01:54]} 53. Rxa5 {[%emt 0:00:17]} Kxf5 {[%emt 0:01:11]} 54. Rxc5 {[%emt 0:00:20]} Ra8 {[%emt 0:00:03]} 55. Rxc6 {[%emt 0:02:07]} Rxa4 {[%emt 0:00:04]} 56. Kg2 {[%emt 0:00:10]} Ra3 {[%emt 0:00:17]} 57. c5 {[%emt 0:01:23]} Rxc3 {[%emt 0:00:04]} 58. Rc8 {[%emt 0:00:26]} 1/2-1/2

[Event "22nd ETCC Women 2019"]
[Site "Batumi"]
[Date "2019.10.30"]
[Round "6.14"]
[White "Medic, Mirjana"]
[Black "Trippold, Denise"]
[Result "1/2-1/2"]
[ECO "D43"]
[WhiteElo "2163"]
[BlackElo "2180"]
[Annotator "NA"]
[PlyCount "148"]
[EventDate "2019.10.24"]
[EventType "team-tourn"]
[EventCountry "GEO"]
[SourceTitle "playchess.com"]
[Source "ChessBase"]
[SourceQuality "1"]
[WhiteTeam "Croatia"]
[BlackTeam "Austria"]
[WhiteTeamCountry "CRO"]
[BlackTeamCountry "AUT"]
[TimeControl "40/5400+30:1800+30"]

1. d4 {[%emt 0:00:00]} d5 {[%emt 0:00:00]} 2. c4 {[%emt 0:00:00]} e6 {[%emt 0:00:00]} 3. Nc3 {[%emt 0:00:00]} c6 {[%emt 0:00:03]} 4. Nf3 {[%emt 0:00:00]} Nf6 {[%emt 0:00:16]} 5. cxd5 {[%emt 0:00:45]} exd5 {[%emt 0:00:21]} 6. Qc2 {[%emt 0:00:39]} g6 {[%emt 0:03:13]} 7. Bg5 {[%emt 0:00:23]} Be7 {[%emt 0:03:31]} 8. e3 {[%emt 0:03:25]} Bf5 {[%emt 0:01:14]} 9. Bd3 {[%emt 0:00:57]} Bxd3 {[%emt 0:00:12]} 10. Qxd3 {[%emt 0:00:02]} Nbd7 {[%emt 0:00:48]} 11. O-O {[%emt 0:03:11]} Nh5 {[%emt 0:20:22]} 12. Bxe7 {[%emt 0:06:57]} Qxe7 {[%emt 0:00:04]} 13. b4 {[%emt 0:11:54]} a6 {[%emt 0:03:25]} 14. a4 {[%emt 0:00:18]} O-O {[%emt 0:00:28]} 15. b5 {[%emt 0:01:27]} axb5 {[%emt 0:00:28]} 16. axb5 {[%emt 0:00:02]} Nhf6 {[%emt 0:07:43]} 17. h3 {[%emt 0:06:09]} Ne4 {[%emt 0:03:03]} 18. Rfc1 {[%emt 0:15:04]} Nd6 {[%emt 0:08:03]} 19. Rab1 {[%emt 0:08:04]} Ra5 {[%emt 0:03:59]} 20. Ne1 {[%emt 0:06:57]} Rfa8 {[%emt 0:09:29]} 21. Nc2 {[%emt 0:04:12]} Nf6 {[%emt 0:02:00]} 22. bxc6 {[%emt 0:01:11]} bxc6 {[%emt 0:00:05]} 23. Nb4 {[%emt 0:00:10]} Qd7 {[%emt 0:02:17]} 24. Qe2 {[%emt 0:03:10]} Qe8 {[%emt 0:09:24]} 25. Nd3 {[%emt 0:03:51]} Nd7 {[%emt 0:01:06]} 26. Nb4 {[%emt 0:01:02]} Nf6 {[%emt 0:06:11]} 27. Qd1 {[%emt 0:01:14]} Nc4 {[%emt 0:02:07]} 28. Qd3 {[%emt 0:05:15]} Ra3 {[%emt 0:01:01]} 29. Nc2 {[%emt 0:00:41]} R3a7 {[%emt 0:01:12]} 30. Rb3 {[%emt 0:01:49]} Nd6 {[%emt 0:04:52]} 31. Rcb1 {[%emt 0:00:49]} Nd7 {[%emt 0:00:09]} 32. Nb4 {[%emt 0:00:43]} Nf6 {[%emt 0:00:29]} 33. Qd1 {[%emt 0:00:54]} Qc8 {[%emt 0:01:36]} 34. Qf3 {[%emt 0:04:54]} Kg7 {[%emt 0:01:17]} 35. Qd1 {[%emt 0:02:24]} Kg8 {[%emt 0:01:10]} 36. Nd3 {[%emt 0:00:32]} Nd7 {[%emt 0:00:04]} 37. Rc1 {[%emt 0:00:15]} Qe8 {[%emt 0:01:29]} 38. Nb1 {[%emt 0:02:55]} Rc8 {[%emt 0:01:29]} 39. Nd2 {[%emt 0:00:42]} Qe6 {[%emt 0:02:10]} 40. Nf4 {[%emt 0:00:00]} Qe8 {[%emt 0:00:00]} 41. Qc2 {[%emt 0:08:45]} Ra6 {[%emt 0:19:09]} 42. Nd3 {[%emt 0:03:45]} Rb6 {[%emt 0:04:26]} 43. Rxb6 {[%emt 0:09:24]} Nxb6 {[%emt 0:00:01]} 44. Ne5 {[%emt 0:00:13]} Nd7 {[%emt 0:02:39]} 45. Nxd7 {[%emt 0:02:43]} Qxd7 {[%emt 0:00:01]} 46. Qc5 {[%emt 0:00:27]} Nf5 {[%emt 0:06:45]} 47. Nf3 {[%emt 0:01:00]} Qe7 {[%emt 0:01:20]} 48. Ne5 {[%emt 0:01:00]} Qxc5 {[%emt 0:00:33]} 49. Rxc5 {[%emt 0:00:03]} Ne7 {[%emt 0:00:12]} 50. Ra5 {[%emt 0:02:20]} Rb8 {[%emt 0:02:17]} 51. g4 {[%emt 0:00:23]} f6 {[%emt 0:00:20]} 52. Nd7 {[%emt 0:00:18]} Rb1+ {[%emt 0:00:01]} 53. Kg2 {[%emt 0:00:08]} Kf7 {[%emt 0:00:07]} 54. Ra7 {[%emt 0:02:30]} Rb2 {[%emt 0:01:02]} 55. Nc5 {[%emt 0:02:52]} Rc2 {[%emt 0:00:36]} 56. Rc7 {[%emt 0:00:09]} Ke8 {[%emt 0:00:56]} 57. Nb7 {[%emt 0:00:24]} Rc1 {[%emt 0:00:28]} 58. Nc5 {[%emt 0:01:22]} Rc2 {[%emt 0:00:06]} 59. Ra7 {[%emt 0:00:49]} Rc1 {[%emt 0:00:28]} 60. Ra8+ {[%emt 0:00:51]} Kf7 {[%emt 0:00:01]} 61. Nd7 {[%emt 0:00:25]} Ng8 {[%emt 0:00:15]} 62. Rc8 {[%emt 0:00:36]} Rc2 {[%emt 0:00:14]} 63. h4 {[%emt 0:02:14]} Kg7 {[%emt 0:01:43]} 64. Rc7 {[%emt 0:00:38]} Ne7 {[%emt 0:00:19]} 65. Ra7 {[%emt 0:02:21]} h6 {[%emt 0:00:40]} 66. Ra8 {[%emt 0:00:25]} Rb2 {[%emt 0:00:29]} 67. Nc5 {[%emt 0:00:38]} Kf7 {[%emt 0:00:17]} 68. Rd8 {[%emt 0:00:40]} Rc2 {[%emt 0:00:16]} 69. Rd6 {[%emt 0:00:20]} Rc1 {[%emt 0:00:27]} 70. Nd7 Ng8 71. Nc5 {[%emt 0:02:06]} Ne7 {[%emt 0:00:33]} 72. Rd7 {[%emt 0:01:23]} Ke8 {[%emt 0:00:26]} 73. Rd6 {[%emt 0:00:27]} Kf7 {[%emt 0:00:02]} 74. Rd7 {[%emt 0:01:01]} Ke8 1/2-1/2

[Event "22nd ETCC Women 2019"]
[Site "Batumi"]
[Date "2019.10.30"]
[Round "6.15"]
[White "Osmak, Iulija"]
[Black "Lazarne Vajda, Szidonia"]
[Result "1-0"]
[ECO "B09"]
[WhiteElo "2409"]
[BlackElo "2353"]
[Annotator "NA"]
[PlyCount "79"]
[EventDate "2019.10.24"]
[EventType "team-tourn"]
[EventCountry "GEO"]
[SourceTitle "playchess.com"]
[Source "ChessBase"]
[SourceQuality "1"]
[WhiteTeam "Ukraine"]
[BlackTeam "Hungary"]
[WhiteTeamCountry "UKR"]
[BlackTeamCountry "HUN"]
[TimeControl "40/5400+30:1800+30"]

1. e4 {[%emt 0:00:00]} g6 {[%emt 0:00:00]} 2. d4 {[%emt 0:00:00]} Bg7 {[%emt 0:00:04]} 3. Nc3 {[%emt 0:00:14]} d6 {[%emt 0:00:56]} 4. f4 {[%emt 0:00:46]} Nf6 {[%emt 0:01:05]} 5. Nf3 {[%emt 0:00:35]} c5 {[%emt 0:01:30]} 6. dxc5 {[%emt 0:00:42]} Qa5 {[%emt 0:00:38]} 7. Bd3 {[%emt 0:09:38]} Qxc5 {[%emt 0:01:22]} 8. Qe2 {[%emt 0:00:11]} O-O {[%emt 0:01:32]} 9. Be3 {[%emt 0:00:05]} Qa5 {[%emt 0:00:41]} 10. O-O {[%emt 0:00:42]} Bg4 {[%emt 0:01:52]} 11. Qe1 {[%emt 0:07:49]} Bxf3 {[%emt 0:04:23]} 12. Rxf3 {[%emt 0:00:21]} Ng4 {[%emt 0:02:04]} 13. Bd2 {[%emt 0:05:14]} Nc6 {[%emt 0:14:21]} 14. Kh1 {[%emt 0:02:52]} Qb6 {[%emt 0:21:42]} 15. Rb1 {[%emt 0:16:00]} e6 {[%emt 0:03:25]} 16. Qh4 {[%emt 0:03:32]} h5 {[%emt 0:07:49]} 17. h3 {[%emt 0:12:02]} Nf6 {[%emt 0:00:26]} 18. Ne2 {[%emt 0:03:30]} d5 {[%emt 0:10:52]} 19. e5 {[%emt 0:02:02]} Ne4 {[%emt 0:00:13]} 20. Be3 {[%emt 0:06:37]} Qd8 {[%emt 0:03:40]} 21. Qe1 {[%emt 0:02:53]} Qe7 {[%emt 0:03:04]} 22. b4 {[%emt 0:01:53]} b6 {[%emt 0:03:50]} 23. c4 {[%emt 0:00:30]} Rfc8 {[%emt 0:02:56]} 24. a3 {[%emt 0:13:27]} Rab8 {[%emt 0:04:35]} 25. Rf1 {[%emt 0:03:57]} a5 {[%emt 0:02:19]} 26. cxd5 {[%emt 0:02:09]} exd5 {[%emt 0:00:21]} 27. Bxe4 {[%emt 0:02:20]} dxe4 {[%emt 0:00:05]} 28. Ng3 {[%emt 0:00:02]} Rd8 {[%emt 0:04:04]} 29. Nxe4 {[%emt 0:00:15]} Rd3 {[%emt 0:00:35]} 30. bxa5 {[%emt 0:01:00]} Qxa3 {[%emt 0:02:26]} 31. Bxb6 {[%emt 0:00:26]} Ra8 {[%emt 0:01:55]} 32. Ra1 {[%emt 0:00:42]} Qe7 {[%emt 0:00:32]} 33. Qe2 {[%emt 0:01:20]} Rb3 {[%emt 0:00:17]} 34. Qc2 {[%emt 0:01:12]} Qe6 {[%emt 0:00:46]} 35. Nc5 {[%emt 0:00:17]} Rxh3+ {[%emt 0:00:25]} 36. gxh3 {[%emt 0:00:13]} Qxh3+ {[%emt 0:00:05]} 37. Qh2 {[%emt 0:00:08]} Qf5 {[%emt 0:00:41]} 38. Qg2 {[%emt 0:00:27]} Rc8 {[%emt 0:00:35]} 39. Ne4 {[%emt 0:01:35]} Nb4 {[%emt 0:00:50]} 40. Nd6 {[%emt 0:00:00]} 1-0

[Event "22nd ETCC Women 2019"]
[Site "Batumi"]
[Date "2019.10.30"]
[Round "6.15"]
[White "Polterauer, Chiara"]
[Black "Purgar, Ivona"]
[Result "1-0"]
[ECO "B48"]
[WhiteElo "2172"]
[BlackElo "2205"]
[Annotator "NA"]
[PlyCount "69"]
[EventDate "2019.10.24"]
[EventType "team-tourn"]
[EventCountry "GEO"]
[SourceTitle "playchess.com"]
[Source "ChessBase"]
[SourceQuality "1"]
[WhiteTeam "Austria"]
[BlackTeam "Croatia"]
[WhiteTeamCountry "AUT"]
[BlackTeamCountry "CRO"]
[TimeControl "40/5400+30:1800+30"]

1. e4 {[%emt 0:00:00]} c5 {[%emt 0:00:00]} 2. Nf3 {[%emt 0:00:00]} e6 {[%emt 0:00:00]} 3. d4 {[%emt 0:00:00]} cxd4 {[%emt 0:00:00]} 4. Nxd4 {[%emt 0:00:00]} Nc6 {[%emt 0:00:00]} 5. Nc3 {[%emt 0:00:16]} Qc7 {[%emt 0:00:14]} 6. Be3 {[%emt 0:00:32]} a6 {[%emt 0:00:18]} 7. a3 {[%emt 0:00:28]} Nf6 {[%emt 0:03:31]} 8. f4 {[%emt 0:00:23]} d6 {[%emt 0:04:55]} 9. Qf3 {[%emt 0:01:03]} Bd7 {[%emt 0:02:44]} 10. O-O-O {[%emt 0:03:35]} Rc8 {[%emt 0:03:13]} 11. g4 {[%emt 0:04:56]} Nxd4 {[%emt 0:06:13]} 12. Rxd4 {[%emt 0:00:42]} d5 {[%emt 0:08:46]} 13. exd5 {[%emt 0:02:51]} Nxd5 {[%emt 0:05:54]} 14. Rxd5 {[%emt 0:01:28]} exd5 {[%emt 0:10:24]} 15. Bd4 {[%emt 0:01:35]} Bc6 {[%emt 0:06:02]} 16. Bd3 {[%emt 0:03:21]} Be7 {[%emt 0:10:27]} 17. Bxg7 {[%emt 0:07:37]} d4 {[%emt 0:02:37]} 18. Ne4 {[%emt 0:01:07]} Rg8 {[%emt 0:00:59]} 19. Bxd4 {[%emt 0:03:12]} Kf8 {[%emt 0:04:19]} 20. Be5 {[%emt 0:15:19]} Qd7 {[%emt 0:13:31]} 21. g5 {[%emt 0:05:08]} Qe6 {[%emt 0:02:51]} 22. h4 {[%emt 0:05:52]} b5 {[%emt 0:01:33]} 23. Kb1 {[%emt 0:06:31]} a5 {[%emt 0:00:29]} 24. Qh5 {[%emt 0:02:13]} b4 {[%emt 0:04:02]} 25. axb4 {[%emt 0:02:04]} axb4 {[%emt 0:00:18]} 26. Qxh7 {[%emt 0:00:51]} Qd5 {[%emt 0:08:59]} 27. Re1 {[%emt 0:03:15]} Qe6 {[%emt 0:00:31]} 28. b3 {[%emt 0:10:46]} Bd5 {[%emt 0:00:26]} 29. Kb2 {[%emt 0:01:50]} Qc6 {[%emt 0:00:39]} 30. Nf6 {[%emt 0:02:10]} Bxf6 {[%emt 0:00:23]} 31. Bxf6 {[%emt 0:00:05]} Be6 {[%emt 0:00:18]} 32. f5 {[%emt 0:01:26]} Rc7 {[%emt 0:00:21]} 33. Qh6+ {[%emt 0:00:56]} Ke8 {[%emt 0:00:05]} 34. fxe6 {[%emt 0:00:08]} fxe6 {[%emt 0:00:15]} 35. Bg6+ {[%emt 0:01:32]} 1-0